Cogmind - Beta 15 @@@ ROGUE MODE // 2025.07.21 @ 18:20:45 Player: beans Result: Destroyed by L1-SBN(l) with Ripper Performance ------------- Evolutions (0) 0 Regions Visited (3) 600 Robots Destroyed (6) 30 Value Destroyed (275) 275 Prototype IDs (0) 0 Alien Tech Used (0) 0 Bonus (707) 707 TOTAL SCORE: 1612 Bonus ------- Registered with UFD 300 Met Optimus in HQ 500 Friendly Fire -93 Cogmind --------- Core Integrity 0/250 Matter 300/300 Energy 100/100 System Corruption 2% Temperature Cool (2) Movement Walking (120) Location -8/Scraptown Parts ------- > --- POWER (1) -------- (None) > --- PROPULSION (2) --- Carbon-fiber Leg Carbon-fiber Leg > --- UTILITY (2) ------ Large Storage Unit Machine Analyzer > --- WEAPON (2) ------- Heavy Machine Gun > --- INVENTORY (15) --- Medium Treads Overtuned Titanium Leg Shock Absorption System Shock Absorption System Scrapoid Pod Scrapoid Pod EM Pulse Gun Small Laser Overtuned Pulse Rifle Gatling Laser Subdweller Machine Gun Shock Bomb Launcher Botcube Peak State ------------ > --- POWER ------------ Light Nuclear Core > --- PROPULSION ------- Overtuned Titanium Leg Overtuned Titanium Leg > --- UTILITY ---------- Large Storage Unit Machine Analyzer > --- WEAPON ----------- High-powered Shotgun Heavy Machine Gun > --- INVENTORY -------- Medium Treads Shock Absorption System Shock Absorption System Scrapoid Pod EM Pulse Gun Small Laser Overtuned Pulse Rifle Gatling Laser Subdweller Machine Gun Shock Bomb Launcher Botcube [Rating: 25] Favorites ----------- Power Ion Engine Engine Ion Engine Power Core Light Nuclear Core Propulsion Improved Treads Treads Improved Treads Leg Overtuned Titanium Leg Utility Large Storage Unit Storage Large Storage Unit Processor Machine Analyzer Weapon EM Pulse Gun Energy Gun EM Pulse Gun Energy Cannon Proton Cannon Ballistic Gun Subdweller Machine Gun Launcher Shock Bomb Launcher Build | -11 -10 -10 -8 ------- Run | Yrd Mat Sub Scr Slots Evolved . | . . . . Power . | . . . . Propulsion . | . . . . Utility . | . . . . Weapon . | . . . . Parts Attached 22 | 6 . 1 15 Power 2 | 1 . . 1 Engine 1 | 1 . . . Core 1 | . . . 1 Reactor . | . . . . Propulsion 9 | 2 . . 7 Treads 4 | 2 . . 2 Leg 5 | . . . 5 Wheel . | . . . . Hover . | . . . . Flight . | . . . . Utility 3 | 1 . . 2 Device . | . . . . Storage 2 | 1 . . 1 Processor 1 | . . . 1 Hackware . | . . . . Protection . | . . . . Artifact . | . . . . Weapon 8 | 2 . 1 5 Energy Gun 3 | 2 . . 1 Energy Cannon 1 | . . . 1 Ballistic Gun 3 | . . 1 2 Ballistic Cannon . | . . . . Launcher 1 | . . . 1 Special Weapon . | . . . . Impact Weapon . | . . . . Slashing Weapon . | . . . . Piercing Weapon . | . . . . Special Melee Weapon . | . . . . Unidentified Prototypes . | . . . . Parts Lost 5 | . . . 5 Power 1 | . . . 1 Propulsion 2 | . . . 2 Utility . | . . . . Weapon 2 | . . . 2 Highest Loss Streak 2 | . . . 2 To Critical Strikes . | . . . . Average Backups 6 | . . 2 7 Power . | . . . . Propulsion . | . . . . Utility 1 | . . 1 1 Weapon 4 | . . 1 5 Tool/Special . | . . . . Unused Backups 6 | . . . 6 Power . | . . . . Propulsion . | . . . . Utility 3 | . . . 3 Weapon 1 | . . . 1 Tool/Special 2 | . . . 2 Average Slot Usage (%) 93 | . 85 75 95 Engine 12 | . 14 14 12 Treads 25 | . 28 28 24 Leg 2 | . . . 2 Storage 14 | . 14 14 14 Processor 9 | . . . 10 Energy Gun 12 | . 28 8 12 Ballistic Gun 13 | . . 10 14 Peak Build Rating 25 | 6 6 7 25 Average Rating 15 | 4 6 6 16 On Entrance 4 | . 6 6 7 Naked Turns . | . . . . Heaviest Build 36 | 13 13 16 36 Greatest Support 51 | 40 40 40 51 Greatest Overweight (x) 9 | . . . 9 Average Overweight (x) . | . . . . Largest Inventory Capacity 15 | 8 8 8 15 Average Capacity 13 | 7 8 8 14 Most Carried 15 | 5 1 3 15 Average Carried 7 | . . 2 8 Final Capacity 15 | 8 8 8 15 Final Carried 15 | . 1 2 15 Class Distribution -------------------- 100% | Mutant Dominant Class ---------------- Mutant | -10/Materials Mutant | -10/Subcaves Mutant | -8/Scraptown Resources | -11 -10 -10 -8 ----------- Run | Yrd Mat Sub Scr Matter Collected 607 | 181 56 39 331 Remotely . | . . . . Salvage Created 366 | . . . 366 Parts 14 | . . . 14 Haulers Intercepted . | . . . . Recyclers Shooed . | . . . . Parts Field Recycled . | . . . . Retrieved Matter . | . . . . Parts Self-Destructed 15 | . . 15 . Prevented . | . . . . Kills | -11 -10 -10 -8 ------- Run | Yrd Mat Sub Scr Combat Hostiles Destroyed 6 | . . . 6 Guns 5 | . . . 5 Cannons 1 | . . . 1 Classes Destroyed 4 | . . . 4 Explorer 1 | . . . 1 Guru 1 | . . . 1 Scrapper 3 | . . . 3 Savage 1 | . . . 1 Best Kill Streak 3 | . . . 3 Combat Bots Only 3 | . . . 3 Max Kills in Single Turn 1 | . . . 1 Gunslinging . | . . . . Exploded . | . . . . Melee . | . . . . Uniques/NPCs Destroyed . | . . . . Combat | -11 -10 -10 -8 -------- Run | Yrd Mat Sub Scr Hostile Shots Fired 59 | . . 3 56 Missed 11 | . . 1 10 Hits 48 | . . 2 46 Melee 2 | . . . 2 Projectile 46 | . . 2 44 Critical Strikes 4 | . . . 4 Damage Taken 924 | . . 43 881 Core 269 | . . . 269 Absorbed by Shields . | . . . . Core Remaining (%) 100 | 100 . . . Volleys Fired 37 | . . 3 34 Largest 2 | . . 1 2 Hottest 105 | . . 30 105 Shots Fired 53 | . . 3 50 Gun 45 | . . 3 42 Cannon 6 | . . . 6 Launcher 2 | . . . 2 Special . | . . . . Kinetic 38 | . . 3 35 Thermal 6 | . . . 6 Explosive . | . . . . Electromagnetic 9 | . . . 9 Robot Hit Streak 8 | . . 2 8 Robot Miss Streak 4 | . . 1 4 Penetration Max . | . . . . Secondary Targets . | . . . . Shots Hit Robots 40 | . . 2 38 Core Hits 21 | . . 1 20 Critical Kills . | . . . . Critical Parts Destroyed . | . . . . Critical Strikes . | . . . . Melee Attacks . | . . . . Impact . | . . . . Slashing . | . . . . Piercing . | . . . . Sneak Attacks . | . . . . Combat Hostiles . | . . . . Follow-up Attacks . | . . . . Damage Inflicted 875 | . . 44 831 Guns 724 | . . 44 680 Cannons 108 | . . . 108 Explosions 43 | . . . 43 Melee . | . . . . Ramming . | . . . . Kinetic 613 | . . 44 569 Thermal 112 | . . . 112 Explosive . | . . . . Electromagnetic 150 | . . . 150 Impact . | . . . . Slashing . | . . . . Piercing . | . . . . Highest Corruption 2 | . . . 2 Average Corruption 1 | . . . 1 Corruption Purged . | . . . . Corruption Blocked . | . . . . Effects 2 | . . . 2 Matter Fused 2 | . . . 2 Overload Shots . | . . . . Overflow Damage 9 | . . . 9 Projectiles 9 | . . . 9 Explosions . | . . . . Melee . | . . . . Knockbacks . | . . . . Impact . | . . . . Kinetic . | . . . . Secondary . | . . . . Self-Inflicted Damage . | . . . . Shots . | . . . . Rammed . | . . . . Targets Rammed . | . . . . Kicked . | . . . . Crushed . | . . . . Highest Temperature 282 | . . . 282 Average Temperature 86 | . . . 86 Received Heat Transfer 508 | . . . 508 Siege Activations . | . . . . Martial Activations . | . . . . Shielding Activations . | . . . . Robots Disrupted . | . . . . Combat Hostiles . | . . . . Robots Corrupted . | . . . . Combat Hostiles . | . . . . Parts Fried 1 | . . . 1 Impact Corruptions . | . . . . Robots Melted . | . . . . Combat Hostiles . | . . . . Parts Melted 1 | . . . 1 Heat Transferred 103 | . . . 103 Parts Sabotaged . | . . . . Parts Stolen . | . . . . Parts Stripped . | . . . . Power Chain Reactions 2 | . . . 2 Alert | -11 -10 -10 -8 ------- Run | Yrd Mat Sub Scr Maximum Alert Level . | . . . . Low Security (%) 100 | 100 100 . . Level 1 . | . . . . Level 2 . | . . . . Level 3 . | . . . . Level 4 . | . . . . Level 5 . | . . . . High Security . | . . . . Max Security . | . . . . Peak Influence . | . . . . Initial . | . . . . Average . | . . . . Influence Increases . | . . . . Influence Decreases . | . . . . Squads Dispatched . | . . . . Investigation . | . . . . Extermination . | . . . . Reinforcement . | . . . . Assault . | . . . . Garrison . | . . . . Intercept . | . . . . Searches Triggered . | . . . . Construction Impeded . | . . . . Haulers Reinforced . | . . . . Active Scanning Responses . | . . . . Cargo Convoy Interrupts . | . . . . Stealth | -11 -10 -10 -8 --------- Run | Yrd Mat Sub Scr Distress Signals . | . . . . Communications Jammed . | . . . . Distress Signals . | . . . . Times Spotted 30 | . . 2 28 Peak Tracking Total 9 | . . 2 9 Tactical Retreats 1 | . . . 1 Traps | -11 -10 -10 -8 ------- Run | Yrd Mat Sub Scr Traps Triggered . | . . . . Indirectly . | . . . . Trap Hack Attempts . | . . . . Triggered . | . . . . Disarmed . | . . . . Reprogrammed . | . . . . Reused . | . . . . Traps Extracted . | . . . . Installed . | . . . . Triggered . | . . . . Machines | -11 -10 -10 -8 ---------- Run | Yrd Mat Sub Scr Machines Disabled . | . . . . Max in Single Turn . | . . . . Machines Repaired . | . . . . Machines Dismantled . | . . . . Machines Sabotaged . | . . . . Overloaded Fab Kills . | . . . . Hacking | -11 -10 -10 -8 --------- Run | Yrd Mat Sub Scr Machines Accessed 8 | . . . 8 Terminals . | . . . . Fabricators . | . . . . Repair Stations . | . . . . Recycling Units . | . . . . Scanalyzers . | . . . . Garrison Access . | . . . . Total Hacks 59 | . . . 59 Successful 59 | . . . 59 Failed . | . . . . Catastrophic . | . . . . Database Lockouts . | . . . . Manual . | . . . . Terminals . | . . . . Fabricators . | . . . . Repair Stations . | . . . . Recycling Units . | . . . . Scanalyzers . | . . . . Garrison Access . | . . . . Terminal Hacks 59 | . . . 59 Record 51 | . . . 51 Robot Analysis 8 | . . . 8 Fabricator Hacks . | . . . . Repair Station Hacks . | . . . . Recycling Unit Hacks . | . . . . Scanalyzer . | . . . . Garrison Access Hacks . | . . . . Unauthorized Hacks . | . . . . Terminals . | . . . . Fabricators . | . . . . Repair Stations . | . . . . Recycling Units . | . . . . Scanalyzers . | . . . . Garrison Access . | . . . . Data Cores Recovered . | . . . . Used . | . . . . Hacking Detections . | . . . . Full Trace Events . | . . . . Feedback Events . | . . . . Feedback Blocked . | . . . . Robot Schematics Acquired . | . . . . Robots Built . | . . . . Authchips . | . . . . Time . | . . . . Total Robot Build Rating . | . . . . Part Schematics Acquired . | . . . . Parts Built . | . . . . Authchips . | . . . . Time . | . . . . Total Part Build Rating . | . . . . Parts Repaired . | . . . . Time . | . . . . Parts Recycled . | . . . . Recycled Matter . | . . . . Retrieved Matter . | . . . . Retrieved Components . | . . . . Parts Scanalyzed . | . . . . Part Schematics Acquired . | . . . . Parts Damaged . | . . . . Bothacking | -11 -10 -10 -8 ------------ Run | Yrd Mat Sub Scr Used RIF Installer . | . . . . Robots Hacked . | . . . . Non-combat . | . . . . Combat . | . . . . Robot Hacks Applied . | . . . . Relay Couplers Released . | . . . . Fabnet Peak Effective % . | . . . . Robots Rewired . | . . . . Allies Hacked . | . . . . Hacks Repelled . | . . . . Allies | -11 -10 -10 -8 -------- Run | Yrd Mat Sub Scr Total Allies . | . . . . Largest Group . | . . . . Highest-Rated Group . | . . . . Highest-Rated Ally . | . . . . Total Orders . | . . . . Ally Attacks . | . . . . Total Damage . | . . . . Kills . | . . . . Allies Corrupted . | . . . . Allies Melted 4 | . . . 4 Intel | -11 -10 -10 -8 ------- Run | Yrd Mat Sub Scr Active Infowar (turns) 2912 | . . . 2912 Machine Analysis 2912 | . . . 2912 Robot Analysis Total 8 | . . . 8 Derelict Logs Recovered . | . . . . Drone Launches . | . . . . Drone Recoveries . | . . . . Exploration | -11 -10 -10 -8 ------------- Run | Yrd Mat Sub Scr Turns Passed 4357 | 83 167 314 3793 Spaces Moved 2186 | 52 54 161 1919 Core 18 | 10 . . 8 Treads 1977 | 42 54 161 1720 Legs 191 | . . . 191 Wheels . | . . . . Hover . | . . . . Flight . | . . . . Fastest Speed 50 | 50 160 160 100 Average Speed 158 | 138 160 160 159 Slowest Speed 500 | 160 160 160 500 Overloaded Moves . | . . . . Propulsion Burnouts . | . . . . Robots Hopped . | . . . . Potential Cave-ins . | . . . . Cave-ins Triggered . | . . . . Exploration Rate (%) 30 | 5 10 16 92 Regions Visited 3 Branch Regions 2 Pre-discovered Areas 2 | . . . 2 Known Exits Taken . | . . . . Unknown Exits Taken 3 | 1 1 1 . Scrap Searched 2 | . . . 2 Spaces Dug . | . . . . Terrain Destroyed 3 | . . . 3 Melee . | . . . . Projectile 1 | . . . 1 AOE 2 | . . . 2 Terrain Rammed . | . . . . Walls Destroyed . | . . . . Machines Disabled . | . . . . Actions | -11 -10 -10 -8 --------- Run | Yrd Mat Sub Scr Total 3016 | 63 135 215 2603 Wait 729 | . 81 48 600 Move 2183 | 51 53 160 1919 Hop . | . . . . Pick Up 29 | 6 1 1 21 Fast Attach 1 | . . . 1 Attach 11 | 6 . 1 4 Detach 1 | . . 1 . Swap 13 | . . 1 12 Drop 6 | . . . 6 Fire 37 | . . 3 34 Melee . | . . . . Ram . | . . . . Kick . | . . . . Crush . | . . . . Escape Stasis . | . . . . Rewire 6 | . . . 6 Trap . | . . . . Miscellaneous . | . . . . Route ------- -11/Scrapyard -10/Materials -10/Subcaves -8/Scraptown (discovered 2 exits: [*Fac x2]) History --------- Turn | Location | Event 41 | -11/Scrapyard | Discovered new exit (range 14) 84 | -11/Scrapyard | Entered Materials 85 | -10/Materials | Met a group of wandering Federalists 163 | -10/Materials | Discovered new exit (range 8) 251 | -10/Materials | Entered Subcaves 252 | -10/Subcaves | Continued accompanying wandering Federalists (5) 252 | -10/Subcaves | Approached by a straggling Scientist 313 | -10/Subcaves | Build established: Mutant 328 | -10/Subcaves | Shifting Twisted Machinery released Sub. Machine Gun 333 | -10/Subcaves | Shifting Twisted Machinery released Sub. Power Source 502 | -10/Subcaves | Wandering Federalist uncovered a shortcut to Scraptown 565 | -10/Subcaves | Entered Scraptown 796 | -8/Scraptown | Visited Awakened 853 | -8/Scraptown | Visited Symbiants 895 | -8/Scraptown | Visited Cyclists 933 | -8/Scraptown | Visited Red Mages 965 | -8/Scraptown | Found Relay Coupler [Proto] 1020 | -8/Scraptown | Visited IN-MT5's Study 1067 | -8/Scraptown | Visited CPS Storage 1124 | -8/Scraptown | Visited The Evicted 1437 | -8/Scraptown | Learned location of Extension (-4) 1557 | -8/Scraptown | Discovered new exit (range 11) 1881 | -8/Scraptown | Heard Great Nut preacher, LISTEN AND RECITE! 2021 | -8/Scraptown | Visited UFD Registry 2021 | -8/Scraptown | Registered with UFD as "Slugglider" 2085 | -8/Scraptown | Visited Scrapoid Pod Storage 2093 | -8/Scraptown | Found Scrapoid Pod 2124 | -8/Scraptown | Visited Supply Room 2169 | -8/Scraptown | Visited Botcube Research 2184 | -8/Scraptown | Found Botcube 2238 | -8/Scraptown | Visited Research Penetration Think Tank 2276 | -8/Scraptown | Visited Scrap Suit Storage 2353 | -8/Scraptown | Visited Scrapoid Research Area 2405 | -8/Scraptown | Visited Analyses Database 2447 | -8/Scraptown | Visited LU-1G1's Boring Crew 3302 | -8/Scraptown | Discovered new exit (range 5) 3459 | -8/Scraptown | Met Optimus 3459 | -8/Scraptown | Accepted into 0bPrime 3859 | -8/Scraptown | Civil war broke out across Scraptown 3920 | -8/Scraptown | Lost 5 allies 4043 | -8/Scraptown | Lost 6 allies 4088 | -8/Scraptown | Core integrity fell below 50% 4109 | -8/Scraptown | Optimus destroyed in the chaos of civil war 4128 | -8/Scraptown | Core integrity fell below 20% 4163 | -8/Scraptown | Lost 6 allies 4228 | -8/Scraptown | Found Scrapoid Pod 4319 | -8/Scraptown | Lost 4 allies 4358 | -8/Scraptown | Destroyed by L1-SBN(l) with Ripper Last Messages --------------- Ovr. Titanium Leg suddenly begins malfunctioning. Acquired Carbon-fiber Leg. PT-1M9(j) cannibalizes Ovr. Titanium Leg to repair Ovr. Titanium Leg. Acquired Carbon-fiber Leg. PT-1M9(j) cannibalizes Ovr. Titanium Leg to repair Ovr. Titanium Leg. PT-1M9(j) cannibalizes Ovr. Pulse Rifle to repair Ovr. Pulse Rifle. Acquired 20 matter. PT-1M9(j) cannibalizes Lgt. Deuterium Engine to repair Lgt. Deuterium Engine. System corrupted: Matter fused (-7). Acquired 7 matter. PT-1M9(j) destroyed. Acquired 8 matter. L1-SBN(l) suffers critical hit (Destroy). Acquired 8 matter. Hpw. Shotgun destroyed. Map ----- +----------------------------------------------------+ | # #???????????? | | ####################### ###########???????????? | | ??????????????????????## ##?????????????????????? | | ???????????????????????# #??????????????????????? | | ???????????????????????# #??????????????????????? | | ???????????????????????# #??????????????????????? | | ???????????????????????# #??????????????????????? | | ???????????????????????# %#??????????????????????? | | ##########?????????????#%=#? ???????????????????? | | #""! """#??#######"####[%#? ??????????????????? | | #"!! "#??#"""" ""#!=#? ??????????????????? | | #" ""#??#""" ""#![#? ??????????????????? | | #"!! ""#??#"" " #!*## ?????????????????? | | #"" "#??#""" "#=%# ??????????????????? | | #" "#??# "#[!#"""???????????????????? | | ###### ###??######%####=[!## #???????????????????? | | ###### ###########%#####%=## ##???###????????????? | | """"""*"""""""""""*" " "E%!!*"#??? ???"?????????? | | %!% !%*[%!=!%!g%!%==%!= "#?? """ "?????????? | | = *%!= %%=*!%=[%=!=!% ! #?? "?????????? | | !%* = !*[== =![!![%!!= "#?" ??????????? | | ==!! % != ![=! "##" " """?????????? | | !%!= [ [%== !%!! " #????????? | | """"" """"" """""" "##" """ ""?????????? | | """"""""""""""""""""""= l! "#?" ????????????? | | #### ################"" @!! "#?? ""???????????? | | ##????????#"" ==%!"##########?????????? | | X"#????????#" = "## " """"#?????????? | | "" "" ##????????#"" *=="## ""#?????????? | | "" "" X"#?###??###"" !%!%!## "#?????????? | | " ####"####!;" ==!%!!## ""#?????????? | | %[! !!=%=!!!=[%!%=! ""#?????????? | | "" [! % %!%==[h%!!*!!!!!# ""#?????????? | | " =%! " #########!#"[=%!=%=## """"""#?????????? | | %=" [ "" ""#??????###""[[[%!=##"""""""#?????????? | | / "" "" ##????????#""!!==[=##########?????????? | | X"#????????#"=%=!*%[#??????????????????? | | ##????????#""*[p%=%#??????????????????? | | #### ################""!!!=!"##########?????????? | | """"""""""""""""""""""""=%==["## #"""""#?????????? | | """"""""""""""""""""""""%=*==%= !!!! #?????????? | | !%!*!!*%## ##"#??????? | | ==!!!!%!## X" #??????? | | ! = [!=/%==## #??????? | | [ !%= = =!%=## #??????? | | % ! * !!! # !! !! !#??????? | | """""""" """"""""""" "" ## #"""""#""#??????? | | ######## ########### #####" #############??????? | | #???# #?# ! # #??????????????????? | | #???# #?#" # #??????????????????? | +----------------------------------------------------+ Best States ------------- Heat Dissipation 25 Energy Generation 14 Energy Capacity 250 Matter Stores 300 Matter Capacity 300 Sight Range 16 Terrain Scan Density 10 Evasion (%) 55 Recoil Reduction 2 Item Schematics ----------------- None Robot Schematics ------------------ None Fabricated ------------ Nothing Repaired ---------- Nothing Alien Tech Used ----------------- None Achievements -------------- None Challenges ------------ None Game ------ Seed MachineSwarmMount Manual? 0 Play Time 00:31:11 Cumulative 63.0 hours Start 2025.07.20 @ 09:44:19 End 2025.07.21 @ 18:20:45 Sessions 1 Manual Loads 0 Difficulty Rogue Special Mode None Game No. 266 Rogue 266 Adventurer 0 Explorer 0 Win Type - Total 0 Types 0/0/0/0/0/0/0/0/0/0 Lore% 43 Gallery% 31 Achievement% 25 Wizard Run 0 Options --------- Layout 2 ASCII 0 Keyboard 0 Movement Mouse Keybinds 0 Fullscreen 1 Font 24/Terminus Map View 50x44 Zoom Use 0% Tactical HUD 0 Map Filters NONE Filters NONE Steam 1 RUN: 47cd2dc8-3946-4b0e-9a1f-4caa9bf70db7